Cogmind - Beta 13 @@@ ROGUE MODE // 2024.03.25 @ 19:55:09 Player: Leif Result: Destroyed by H-61 Shepherd with Heavy Assault Cannon Performance ------------- Evolutions (3) 1500 Regions Visited (9) 1800 Robots Destroyed (27) 135 Value Destroyed (618) 618 Prototype IDs (1) 20 Alien Tech Used (0) 0 Bonus (87) 87 TOTAL SCORE: 4160 Bonus ------- Aligned with FarCom 300 Friendly Fire -213 Cogmind --------- Core Integrity 0/700 Matter 293/300 Energy 100/100 System Corruption 22% Temperature Cool (0) Movement Core (50) Location -7/Factory Parts ------- > --- POWER (1) -------- (None) > --- PROPULSION (4) --- (None) > --- UTILITY (6) ------ Terrain Scan Processor Target Analyzer > --- WEAPON (2) ------- (None) > --- INVENTORY (5) ---- Enhanced Nuclear Core Advanced Visual Processing Unit Peak State ------------ > --- POWER ------------ Improved Deuterium Engine > --- PROPULSION ------- Backup Propulsion III > --- UTILITY ---------- Transmission Jammer Hardened Heavy Armor Plating Hacking Suite System Shield System Shield > --- WEAPON ----------- Shock Rifle Backup Laser III > --- INVENTORY -------- Heat Sink Backup Laser III [Rating: 34] Favorites ----------- Power Improved Deuterium Engine Engine Improved Deuterium Engine Propulsion Flight Unit Treads Light Treads Leg Improved Titanium Leg Wheel Compact Wheel Hover Unit Backup Propulsion III Flight Unit Flight Unit Utility System Shield Device Heat Sink Storage Small Storage Unit Processor Target Analyzer Hackware System Shield Protection Hardened Heavy Armor Plating Weapon Backup Laser III Energy Gun Backup Laser III Ballistic Gun Heavy Assault Rifle Slashing Weapon Scythe Build | -11 -10 -10 -10 -9 -8 -8 -7 -7 -7 ------- Run | Yrd Mat Min Exi Min Mat Sto Fac Was Fac Slots Evolved 6 | . . . . . 4 . 2 . . Power . | . . . . . . . . . . Propulsion 2 | . . . . . 2 . . . . Utility 4 | . . . . . 2 . 2 . . Weapon . | . . . . . . . . . . Parts Attached 51 | 5 7 5 . . 2 8 13 2 9 Power 8 | 1 1 1 . . 1 1 2 . 1 Engine 8 | 1 1 1 . . 1 1 2 . 1 Core . | . . . . . . . . . . Reactor . | . . . . . . . . . . Propulsion 16 | 2 2 3 . . . 3 2 . 4 Treads 3 | 2 . . . . . . . . 1 Leg 6 | . . 1 . . . . 2 . 3 Wheel 2 | . 2 . . . . . . . . Hover . | . . . . . . . . . . Flight 5 | . . 2 . . . 3 . . . Utility 12 | 1 . 1 . . 1 2 4 1 2 Device 3 | . . 1 . . . . 2 . . Storage 1 | 1 . . . . . . . . . Processor 3 | . . . . . . . . 1 2 Hackware 3 | . . . . . 1 1 1 . . Protection 2 | . . . . . . 1 1 . . Artifact . | . . . . . . . . . . Weapon 15 | 1 4 . . . . 2 5 1 2 Energy Gun 10 | 1 2 . . . . 1 4 1 1 Energy Cannon . | . . . . . . . . . . Ballistic Gun 4 | . 2 . . . . . 1 . 1 Ballistic Cannon . | . . . . . . . . . . Launcher . | . . . . . . . . . . Special Weapon . | . . . . . . . . . . Impact Weapon . | . . . . . . . . . . Slashing Weapon 1 | . . . . . . 1 . . . Piercing Weapon . | . . . . . . . . . . Special Melee Weapon . | . . . . . . . . . . Unidentified Prototypes 1 | . . . 1 . . . . . . Parts Lost 23 | . 4 1 . . 1 3 5 1 8 Power 5 | . 1 . . . 1 1 1 . 1 Propulsion 9 | . 2 . . . . 1 2 . 4 Utility 5 | . . . . . . 1 2 1 1 Weapon 4 | . 1 1 . . . . . . 2 Highest Loss Streak 8 | . 2 1 . . 1 2 3 1 8 To Critical Strikes . | . . . . . . . . . . Average Slot Usage (%) 52 | . 77 69 14 14 14 36 55 43 53 Engine 6 | . 14 12 . . 2 1 5 4 6 Treads 2 | . 15 . . . . . . . . Leg 3 | . . 6 . . . . . 10 18 Wheel 3 | . 11 13 . . . . . . . Hover 1 | . . . . . . . 5 . . Flight 3 | . . 1 14 14 9 16 1 . . Device 1 | . . 5 . . . . 3 . . Storage 3 | . 14 7 . . . . . . . Processor 2 | . . . . . . . . 7 15 Hackware 9 | . . . . . 2 10 21 11 . Protection 1 | . . . . . . 4 3 . . Energy Gun 10 | . 15 23 . . . 1 11 4 5 Ballistic Gun 1 | . 5 . . . . . . 4 5 Naked Turns . | . . . . . . . . . . Heaviest Build 36 | 12 12 12 . . 3 7 36 16 16 Greatest Support 50 | 40 40 26 4 4 4 13 30 30 50 Greatest Overweight (x) 4 | . . . . . . . 4 . 3 Average Overweight (x) . | . . . . . . . . . . Largest Inventory Capacity 8 | 8 8 8 5 5 5 5 5 5 5 Average Capacity 5 | 7 8 6 5 5 5 5 5 5 5 Most Carried 8 | 5 6 8 5 5 5 3 4 5 4 Average Carried 2 | 2 3 5 5 5 3 1 1 1 1 Final Capacity 8 | 8 8 5 5 5 5 5 5 5 5 Final Carried 6 | 4 6 5 5 5 1 1 2 5 2 Class Distribution -------------------- 56% | Mutant 37% | Hacker-Mutant 3% | Scavenger-Mutant Dominant Class ---------------- Mutant | -10/Materials Mutant | -10/Mines Mutant | -10/Exiles Mutant | -9/Mines Mutant | -8/Materials Mutant | -8/Storage Hacker-Mutant | -7/Factory Hacker-Mutant | -7/Waste Mutant | -7/Factory Resources | -11 -10 -10 -10 -9 -8 -8 -7 -7 -7 ----------- Run | Yrd Mat Min Exi Min Mat Sto Fac Was Fac Matter Collected 699 | 233 118 40 . . . 73 157 . 78 Remotely . | . . . . . . . . . . Salvage Created 877 | . 289 67 . . . 93 286 . 142 Parts 55 | . 21 3 . . . 7 12 . 12 Haulers Intercepted . | . . . . . . . . . . Recyclers Shooed . | . . . . . . . . . . Parts Field Recycled . | . . . . . . . . . . Retrieved Matter . | . . . . . . . . . . Parts Self-Destructed . | . . . . . . . . . . Prevented . | . . . . . . . . . . Kills | -11 -10 -10 -10 -9 -8 -8 -7 -7 -7 ------- Run | Yrd Mat Min Exi Min Mat Sto Fac Was Fac Combat Hostiles Destroyed 24 | . 12 . . . . 4 6 . 2 Melee 4 | . . . . . . 4 . . . Guns 19 | . 12 . . . . . 5 . 2 Classes Destroyed 6 | . 3 . . . . . 2 . 1 Worker 2 | . 1 . . . . 1 . . . Swarmer 14 | . 9 . . . . 4 1 . . Grunt 6 | . 3 . . . . . 3 . . Brawler 1 | . . . . . . . 1 . . Sentry 2 | . . . . . . . . . 2 Programmer 1 | . . . . . . . 1 . . Thug 1 | . . 1 . . . . . . . Best Kill Streak 5 | . 4 . . . . 5 1 . 1 Combat Bots Only 4 | . 4 . . . . 4 1 . 1 Max Kills in Single Turn 1 | . 1 1 . . . 1 1 . 1 Gunslinging . | . . . . . . . . . . Exploded . | . . . . . . . . . . Melee 1 | . . . . . . 1 . . . Uniques/NPCs Destroyed . | . . . . . . . . . . Combat | -11 -10 -10 -10 -9 -8 -8 -7 -7 -7 -------- Run | Yrd Mat Min Exi Min Mat Sto Fac Was Fac Hostile Shots Fired 370 | . 106 21 . . 9 78 59 1 96 Missed 111 | . 22 7 . . 3 30 24 . 25 Damage Taken 3697 | . 810 173 . . 72 505 1013 45 1079 Core 1319 | . 156 73 . . 22 343 191 45 489 Absorbed by Shields . | . . . . . . . . . . Regen/Repaired (Parts) 5 | . 5 . . . . . . . . Core Remaining (%) 47 | 100 . . . 8 . 33 . . . Volleys Fired 99 | . 49 10 . . . . 29 . 11 Largest 2 | . 2 2 . . . . 2 . 2 Hottest 90 | . 80 80 . . . . 90 . 73 Shots Fired 159 | . 70 17 . . . . 54 . 18 Gun 159 | . 70 17 . . . . 54 . 18 Cannon . | . . . . . . . . . . Launcher . | . . . . . . . . . . Special . | . . . . . . . . . . Kinetic 55 | . 41 . . . . . 3 . 11 Thermal 69 | . 20 17 . . . . 32 . . Explosive . | . . . . . . . . . . Electromagnetic 35 | . 9 . . . . . 19 . 7 Robot Hit Streak 9 | . 9 8 . . . . 9 . 8 Robot Miss Streak 3 | . 3 1 . . . . 3 . 2 Penetration Max . | . . . . . . . . . . Secondary Targets 1 | . 1 . . . . . . . . Max Gunslinging Chain 1 | . 1 . . . . . . . . Shots Hit Robots 114 | . 46 13 . . . 6 36 . 13 Core Hits 48 | . 17 4 . . . 5 15 . 7 Critical Kills . | . . . . . . . . . . Critical Parts Destroyed . | . . . . . . . . . . Critical Strikes 4 | . . . . . . . 2 . 2 Corrupt 4 | . . . . . . . 2 . 2 Melee Attacks 10 | . . . . . . 10 . . . Impact . | . . . . . . . . . . Slashing 10 | . . . . . . 10 . . . Piercing . | . . . . . . . . . . Sneak Attacks 2 | . . . . . . 2 . . . Combat Hostiles 1 | . . . . . . 1 . . . Follow-up Attacks . | . . . . . . . . . . Damage Inflicted 1605 | . 438 144 . . 17 252 530 . 224 Guns 1319 | . 438 144 . . . . 530 . 207 Cannons . | . . . . . . . . . . Explosions . | . . . . . . . . . . Melee 252 | . . . . . . 252 . . . Ramming 34 | . . . . . 17 . . . 17 Kinetic 433 | . 263 . . . . . 36 . 134 Thermal 563 | . 130 144 . . . . 289 . . Explosive . | . . . . . . . . . . Electromagnetic 323 | . 45 . . . . . 205 . 73 Impact . | . . . . . . . . . . Slashing 252 | . . . . . . 252 . . . Piercing . | . . . . . . . . . . Highest Corruption 22 | . . . . . . 5 9 22 22 Average Corruption 14 | . . . . . . 5 8 16 22 Corruption Purged . | . . . . . . . . . . Corruption Blocked . | . . . . . . . . . . Effects 34 | . . . . . . 5 2 9 18 Message Errors 8 | . . . . . . 1 . 2 5 Matter Fused 8 | . . . . . . . 1 . 7 Heat Flow Errors 4 | . . . . . . 1 . 1 2 Energy Discharges 3 | . . . . . . 1 . 1 1 Parts Rejected 1 | . . . . . . 1 . . . Data Loss (minor) 4 | . . . . . . . 1 2 1 Data Loss (major) 1 | . . . . . . 1 . . . Misfires 1 | . . . . . . . . . 1 Alerts 1 | . . . . . . . . . 1 Misdirections 3 | . . . . . . . . 3 . Overload Shots . | . . . . . . . . . . Overflow Damage . | . . . . . . . . . . Projectiles . | . . . . . . . . . . Explosions . | . . . . . . . . . . Melee . | . . . . . . . . . . Knockbacks . | . . . . . . . . . . Impact . | . . . . . . . . . . Kinetic . | . . . . . . . . . . Secondary . | . . . . . . . . . . Self-Inflicted Damage 14 | . . . . . 8 . . . 6 Shots . | . . . . . . . . . . Rammed 21 | . . . . . 1 . . . 20 Targets Rammed 21 | . . . . . 1 . . . 20 Kicked . | . . . . . . . . . . Crushed . | . . . . . . . . . . Highest Temperature 513 | . 98 117 . . . 209 513 169 225 Average Temperature 107 | . 35 37 . . . 116 203 92 62 Received Heat Transfer 798 | . 162 120 . . 18 108 264 . 126 Effects 6 | . . . . . . . 6 . . Shutdowns 2 | . . . . . . . 2 . . Interference 2 | . . . . . . . 2 . . Short Circuit 1 | . . . . . . . 1 . . Damage (minor) 1 | . . . . . . . 1 . . Siege Activations . | . . . . . . . . . . Robots Corrupted 1 | . . . . . . . 1 . . Combat Hostiles 1 | . . . . . . . 1 . . Parts Fried . | . . . . . . . . . . Impact Corruptions . | . . . . . . . . . . Robots Melted . | . . . . . . . . . . Combat Hostiles . | . . . . . . . . . . Parts Melted 3 | . . . . . . . 3 . . Heat Transferred 1439 | . 300 325 . . . . 814 . . Parts Sabotaged . | . . . . . . . . . . Parts Stolen . | . . . . . . . . . . Parts Stripped . | . . . . . . . . . . Power Chain Reactions . | . . . . . . . . . . Alert | -11 -10 -10 -10 -9 -8 -8 -7 -7 -7 ------- Run | Yrd Mat Min Exi Min Mat Sto Fac Was Fac Peak Influence 296 | . 252 . . . 51 296 254 46 102 Initial 134 | . . . . . . 16 134 26 32 Average 89 | . 99 . . . 4 145 140 29 46 Maximum Alert Level 1 | . 1 . . . . 1 1 . . Low Security (%) 87 | 100 90 100 . 100 100 82 74 100 100 Level 1 12 | . 9 . . . . 17 25 . . Level 2 . | . . . . . . . . . . Level 3 . | . . . . . . . . . . Level 4 . | . . . . . . . . . . Level 5 . | . . . . . . . . . . High Security . | . . . . . . . . . . Max Security . | . . . . . . . . . . Squads Dispatched 8 | . . . . . 1 2 4 . 1 Investigation 1 | . . . . . . 1 . . . Extermination 1 | . . . . . . . 1 . . Reinforcement 3 | . . . . . 1 1 . . 1 Assault . | . . . . . . . . . . Garrison 3 | . . . . . . . 3 . . Intercept . | . . . . . . . . . . Searches Triggered . | . . . . . . . . . . Construction Impeded . | . . . . . . . . . . Haulers Reinforced . | . . . . . . . . . . Active Scanning Responses . | . . . . . . . . . . Cargo Convoy Interrupts . | . . . . . . . . . . Stealth | -11 -10 -10 -10 -9 -8 -8 -7 -7 -7 --------- Run | Yrd Mat Min Exi Min Mat Sto Fac Was Fac Distress Signals 4 | . . 1 . . 1 1 1 . . Communications Jammed . | . . . . . . . . . . Distress Signals . | . . . . . . . . . . Times Spotted 71 | . 14 4 . . 5 21 16 6 5 Peak Tracking Total 11 | . 4 4 . . 5 11 5 6 3 Tactical Retreats 8 | . . . . . . 3 4 . 1 Traps | -11 -10 -10 -10 -9 -8 -8 -7 -7 -7 ------- Run | Yrd Mat Min Exi Min Mat Sto Fac Was Fac Traps Triggered 7 | . 2 . . . . 2 2 . 1 Indirectly . | . . . . . . . . . . Trap Hack Attempts . | . . . . . . . . . . Triggered . | . . . . . . . . . . Disarmed . | . . . . . . . . . . Reprogrammed 2 | . 2 . . . . . . . . Reused . | . . . . . . . . . . Traps Extracted . | . . . . . . . . . . Installed . | . . . . . . . . . . Triggered . | . . . . . . . . . . Machines | -11 -10 -10 -10 -9 -8 -8 -7 -7 -7 ---------- Run | Yrd Mat Min Exi Min Mat Sto Fac Was Fac Machines Disabled . | . . . . . . . . . . Max in Single Turn . | . . . . . . . . . . Machines Repaired . | . . . . . . . . . . Machines Dismantled . | . . . . . . . . . . Machines Sabotaged . | . . . . . . . . . . Overloaded Fab Kills . | . . . . . . . . . . Hacking | -11 -10 -10 -10 -9 -8 -8 -7 -7 -7 --------- Run | Yrd Mat Min Exi Min Mat Sto Fac Was Fac Machines Accessed 11 | . 4 . . . 2 3 2 . . Terminals 8 | . 3 . . . 2 2 1 . . Fabricators . | . . . . . . . . . . Repair Stations 3 | . 1 . . . . 1 1 . . Recycling Units . | . . . . . . . . . . Scanalyzers . | . . . . . . . . . . Garrison Access . | . . . . . . . . . . Total Hacks 19 | . 6 . . . 5 4 4 . . Successful 10 | . 4 . . . 2 3 1 . . Failed 9 | . 2 . . . 3 1 3 . . Catastrophic 3 | . 2 . . . 1 . . . . Database Lockouts . | . . . . . . . . . . Manual 10 | . 4 . 1 . 3 2 . . . Terminals 14 | . 4 . . . 5 3 2 . . Fabricators . | . . . . . . . . . . Repair Stations 5 | . 2 . . . . 1 2 . . Recycling Units . | . . . . . . . . . . Scanalyzers . | . . . . . . . . . . Garrison Access . | . . . . . . . . . . Terminal Hacks 6 | . 2 . . . 2 2 . . . Open Door 1 | . . . . . . 1 . . . Branch Access Points 1 | . . . . . 1 . . . . Emergency Access Points 1 | . . . . . . 1 . . . Unreport Threat 1 | . 1 . . . . . . . . Locate Traps 1 | . . . . . 1 . . . . Reprogram Traps 1 | . 1 . . . . . . . . Fabricator Hacks . | . . . . . . . . . . Repair Station Hacks 4 | . 2 . . . . 1 1 . . Scan Component 1 | . 1 . . . . . . . . Repair 1 | . 1 . . . . . . . . Refit 2 | . . . . . . 1 1 . . Recycling Unit Hacks . | . . . . . . . . . . Scanalyzer . | . . . . . . . . . . Garrison Access Hacks . | . . . . . . . . . . Unauthorized Hacks . | . . . . . . . . . . Terminals . | . . . . . . . . . . Fabricators . | . . . . . . . . . . Repair Stations . | . . . . . . . . . . Recycling Units . | . . . . . . . . . . Scanalyzers . | . . . . . . . . . . Garrison Access . | . . . . . . . . . . Data Cores Recovered . | . . . . . . . . . . Used . | . . . . . . . . . . Hacking Detections 5 | . 2 . . . 1 . 2 . . Full Trace Events . | . . . . . . . . . . Feedback Events . | . . . . . . . . . . Feedback Blocked . | . . . . . . . . . . Robot Schematics Acquired . | . . . . . . . . . . Robots Built . | . . . . . . . . . . Authchips . | . . . . . . . . . . Time . | . . . . . . . . . . Total Robot Build Rating . | . . . . . . . . . . Part Schematics Acquired . | . . . . . . . . . . Parts Built . | . . . . . . . . . . Authchips . | . . . . . . . . . . Time . | . . . . . . . . . . Total Part Build Rating . | . . . . . . . . . . Parts Repaired 1 | . 1 . . . . . . . . Time 26 | . 26 . . . . . . . . Parts Recycled . | . . . . . . . . . . Recycled Matter . | . . . . . . . . . . Retrieved Matter . | . . . . . . . . . . Retrieved Components . | . . . . . . . . . . Parts Scanalyzed . | . . . . . . . . . . Part Schematics Acquired . | . . . . . . . . . . Parts Damaged . | . . . . . . . . . . Bothacking | -11 -10 -10 -10 -9 -8 -8 -7 -7 -7 ------------ Run | Yrd Mat Min Exi Min Mat Sto Fac Was Fac Used RIF Installer . | . . . . . . . . . . Robots Hacked . | . . . . . . . . . . Non-combat . | . . . . . . . . . . Combat . | . . . . . . . . . . Robot Hacks Applied . | . . . . . . . . . . Relay Couplers Released . | . . . . . . . . . . Fabnet Peak Effective % . | . . . . . . . . . . Robots Rewired . | . . . . . . . . . . Allies Hacked . | . . . . . . . . . . Hacks Repelled . | . . . . . . . . . . Allies | -11 -10 -10 -10 -9 -8 -8 -7 -7 -7 -------- Run | Yrd Mat Min Exi Min Mat Sto Fac Was Fac Total Allies . | . . . . . . . . . . Largest Group . | . . . . . . . . . . Highest-Rated Group . | . . . . . . . . . . Highest-Rated Ally . | . . . . . . . . . . Total Orders . | . . . . . . . . . . Ally Attacks . | . . . . . . . . . . Total Damage . | . . . . . . . . . . Kills . | . . . . . . . . . . Allies Corrupted . | . . . . . . . . . . Allies Melted . | . . . . . . . . . . Intel | -11 -10 -10 -10 -9 -8 -8 -7 -7 -7 ------- Run | Yrd Mat Min Exi Min Mat Sto Fac Was Fac Robot Analysis Total . | . . . . . . . . . . Derelict Logs Recovered . | . . . . . . . . . . Drone Launches . | . . . . . . . . . . Drone Recoveries . | . . . . . . . . . . Exploration | -11 -10 -10 -10 -9 -8 -8 -7 -7 -7 ------------- Run | Yrd Mat Min Exi Min Mat Sto Fac Was Fac Turns Passed 2749 | 94 435 283 255 4 101 205 941 120 311 Spaces Moved 2595 | 51 211 264 608 10 180 340 616 143 172 Core 163 | 21 . . . . . 46 6 85 5 Treads 134 | 30 104 . . . . . . . . Legs 349 | . . 84 . . . . 40 58 167 Wheels 228 | . 107 121 . . . . . . . Hover 302 | . . . . . . . 302 . . Flight 1419 | . . 59 608 10 180 294 268 . . Fastest Speed 32 | 50 90 40 40 40 40 32 37 50 50 Average Speed 77 | 114 124 88 40 40 40 38 108 80 125 Slowest Speed 400 | 160 160 120 40 40 40 50 400 125 200 Overloaded Moves . | . . . . . . . . . . Propulsion Burnouts . | . . . . . . . . . . Robots Hopped 11 | . . . . . 1 8 2 . . Cave-ins Triggered . | . . . . . . . . . . Time Travels 1 | . . . 1 . . . . . . Exploration Rate (%) 37 | 5 40 44 93 7 18 64 17 81 5 Regions Visited 9 Branch Regions 4 Pre-discovered Areas . | . . . . . . . . . . Known Exits Taken 1 | . . . . . 1 . . . . Unknown Exits Taken 6 | 1 1 1 1 1 . 1 . . . Scrap Searched 1 | . . 1 . . . . . . . Spaces Dug . | . . . . . . . . . . Terrain Destroyed . | . . . . . . . . . . Melee . | . . . . . . . . . . Projectile . | . . . . . . . . . . AOE . | . . . . . . . . . . Terrain Rammed . | . . . . . . . . . . Walls Destroyed . | . . . . . . . . . . Machines Disabled . | . . . . . . . . . . Actions | -11 -10 -10 -10 -9 -8 -8 -7 -7 -7 --------- Run | Yrd Mat Min Exi Min Mat Sto Fac Was Fac Total 3165 | 87 322 300 619 9 208 393 837 149 241 Wait 328 | 23 44 8 12 . 24 34 160 . 23 Move 2566 | 50 210 263 607 9 178 323 612 142 172 Hop 11 | . . . . . 1 8 2 . . Pick Up 45 | 9 10 3 . . . 6 11 . 6 Fast Attach 1 | . . . . . 1 . . . . Attach 47 | 5 7 3 . . 1 8 12 2 9 Detach 13 | . . 3 . . . 2 3 5 . Swap 3 | . . 2 . . . . 1 . . Drop 22 | . 2 8 . . 3 2 7 . . Fire 99 | . 49 10 . . . . 29 . 11 Melee 10 | . . . . . . 10 . . . Ram 6 | . . . . . . . . . 6 Kick . | . . . . . . . . . . Crush 14 | . . . . . . . . . 14 Escape Stasis . | . . . . . . . . . . Rewire . | . . . . . . . . . . Trap . | . . . . . . . . . . Miscellaneous . | . . . . . . . . . . Route ------- -11/Scrapyard -10/Materials -10/Mines -10/Exiles -9/Mines -8/Materials (discovered 2 exits: *Sto x2) -8/Storage -7/Factory -7/Waste -7/Factory History --------- Turn | Location | Event 3 | -11/Scrapyard | Discovered new exit (range 15) 95 | -11/Scrapyard | Entered Materials 310 | -10/Materials | Build established: Mutant 434 | -10/Materials | Repaired Flight Unit 458 | -10/Materials | Core integrity fell below 50% 507 | -10/Materials | Discovered new exit (range 8) 530 | -10/Materials | Entered Mines 531 | -10/Mines | Assembled infested the area 531 | -10/Mines | Met a Derelict bent on vengeance 790 | -10/Mines | Core integrity fell below 20% 811 | -10/Mines | Deemed a non-threat by the Exiles lab entrance 811 | -10/Mines | Discovered new exit (range 5) 813 | -10/Mines | Entered Exiles 824 | -10/Exiles | Met 8R-AWN 830 | -10/Exiles | Met EX-HEX 850 | -10/Exiles | Met EX-DEC 859 | -10/Exiles | Visited The Gauntlet 964 | -10/Exiles | Met EX-BIN 999 | -10/Exiles | Aligned with FarCom system 1000 | -10/Exiles | Given EX-Vault access code 1009 | -10/Exiles | Opened EX-Vault 1013 | -10/Exiles | Found Prototype Device 1013 | -10/Exiles | Identified Chronowheel 1013 | -10/Exiles | Activated Chronowheel 1013 | -10/Exiles | Spacetime reconverged on an earlier point 1022 | -10/Exiles | Warned to stay clear of 0b10 Research branches 1064 | -10/Exiles | Discovered new exit (range 11) 1068 | -10/Exiles | Entered Mines 1068 | -9/Mines | Discovered new exit (range 10) 1072 | -9/Mines | Entered Materials 1072 | -8/Materials | Evolved 4 slots: Propulsion x2, Utility x2 1146 | -8/Materials | Identified exit to Storage 1173 | -8/Materials | Entered Storage 1336 | -8/Storage | Core integrity fell below 50% 1372 | -8/Storage | Discovered new exit (range 16) 1378 | -8/Storage | Entered Factory 1378 | -7/Factory | Evolved 2 slots: Utility x2 1585 | -7/Factory | Garrison activated, responded to threat 1643 | -7/Factory | Build established: Hacker-Mutant 2257 | -7/Factory | Lost 3 parts (1n2u) 2319 | -7/Factory | Sucked down chute 2319 | -7/Factory | Entered Waste 2334 | -7/Waste | EMP discharged 2334 | -7/Waste | System corruption reached 10% 2340 | -7/Waste | Spotted C-40 Crusher 2355 | -7/Waste | Spotted C-40 Crusher 2389 | -7/Waste | Spotted C-40 Crusher 2398 | -7/Waste | Spotted C-40 Crusher 2400 | -7/Waste | Spotted C-40 Crusher 2407 | -7/Waste | Crushed by Compactor (1 part destroyed, 1 dropped) 2412 | -7/Waste | Spotted C-40 Crusher 2431 | -7/Waste | Discovered new exit (range 16) 2434 | -7/Waste | EMP discharged 2439 | -7/Waste | Entered Factory 2682 | -7/Factory | Build established: Mutant 2695 | -7/Factory | Core integrity fell below 50% 2731 | -7/Factory | Core integrity fell below 20% 2750 | -7/Factory | Destroyed by H-61 Shepherd with Heavy Assault Cannon Last Messages --------------- 02741_ Slammed into H-61 Shepherd. 02741_ U-05 Engineer lays Concrete. 02742_ Slammed into H-61 Shepherd. 02744_ U-05 Engineer lays Concrete. 02744_ Slammed into H-61 Shepherd. 02745_ U-05 Engineer lays Concrete. 02745_ Lgt. Treads destroyed. 02745_ Knocked back. 02746_ U-05 Engineer lays Concrete. 02746_ Slammed into H-61 Shepherd. 02747_ System corrupted: Matter fused (-6). 02747_ Slammed into H-61 Shepherd. 02748_ U-05 Engineer lays Concrete. 02748_ Slammed into H-61 Shepherd. 02749_ U-05 Engineer lays Concrete. 02749_ Slammed into H-61 Shepherd. 02750_ U-05 Engineer lays Concrete. 02750_ Slammed into H-61 Shepherd. 02750_ Destabilizing: Core damaged (-14). 02750_ Penetrated by Slug. Map ----- +----------------------------------------------------+ | ?????????????????##?????????????? | | ?????????#??##### #???#?????????? | | ?????????# """" [ #?????????? | | ?????????# ""R" """ #?????????? | | ?????????# "" " """ #?????????? | | ?????????# """ #?????????? | | ????????## ] | ########+## | | ???????? # == # | | ???????? # == # | | ???????? # = # " " " | | ???????# # # " " " | | ???????# ? ! # " " " | | ???????# ???! ?# " " " | | ???????# ????? ???# " " " | | ???????# ????###+###### " " " ]/ | | ???????# #???# + " " " ]/ | | ######## #???# g#### " " " | | # # ##### #??# " " " | | # # #??# | | #* + #??# | | # # #??#+######### | | # # #### ######### | | # # | | # = % % u | | # ;H *[! | | ?#######@=! !! | | ????###;;[;;## | | ????# [*= =!######## T##### | | ????#" % %!#??????####???# | | ????#"""" #?????????????# | | ????#"""" #?????????????# | | ????#"""" #?????????????# | | ????#"""" #?????????????+ | | ????#"""" ] #?????????????# | | ????#"""" #?????????????# | | ????# ! #?????????????# | | ????##########?????????????# | | ?????????????????########### | | ?????????????????# """""" # | | ?????????????????# """""" + | | ?????????????????# """""" # | | ?????????????????# """""" # | | ?????????????????# # | | ?????????????????# ] # | | ?????????????????# # | | ?????????????????# ! # | | ?????????????????########### | | ???????????????????????????# | | ???????????????????????????# | | ???????????????????????????# | +----------------------------------------------------+ Best States ------------- Heat Dissipation 44 Energy Generation 18 Energy Capacity 290 Matter Stores 300 Matter Capacity 300 Sight Range 20 Terrain Scan Density 85 Jamming Range 12 Armor Coverage 600 Evasion (%) 63 Target Analysis 5 Recoil Reduction 2 Offensive Hacking 10 Defensive Hacking 20 Item Schematics ----------------- None Robot Schematics ------------------ None Fabricated ------------ Nothing Alien Tech Used ----------------- None Achievements -------------- None Challenges ------------ None Game ------ Seed RelayWeaponsPendant Manual? 0 Play Time 00:35:45 Cumulative 52.1 hours Start 2024.03.25 @ 19:18:05 End 2024.03.25 @ 19:55:09 Sessions 1 Manual Loads 0 Difficulty Rogue Special Mode None Game No. 123 Rogue 123 Adventurer 0 Explorer 0 Win Type - Total 1 Types 1/0/0/0/0/0/0/0/0 Lore% 35 Gallery% 45 Achievement% 35 Wizard Run 0 Options --------- Layout 0 ASCII 0 Keyboard 0 Movement Mouse Keybinds 0 Fullscreen 2 Font 18/SmallcapsGlow Map View 76x50 Zoom Use 0% Tactical HUD 1 Map Filters NONE Filters NONE Steam 1 RUN: f91ed4c7-e46b-4489-92f3-1e3be8fed7b5